Cogmind - Beta 11.1 @@@ ROGUE MODE // 2022.10.11 @ 19:04:09 Player: TravelDemon Result: Self-destructed Performance ------------- Evolutions (2) 1000 Regions Visited (5) 1000 Robots Destroyed (52) 260 Value Destroyed (1474) 1474 Prototype IDs (2) 40 Alien Tech Used (0) 0 Bonus (-58) -58 TOTAL SCORE: 3716 Bonus ------- High Alert Combat Kills 30 Follower Combat Kills 92 Friendly Fire -180 Cogmind --------- Core Integrity 406/550 Matter 292/300 Energy 480/480 System Corruption 0% Temperature Cool (0) Movement Core (350) Ox6 Location -8/Materials Parts ------- > --- POWER (1) -------- Heavy Ion Engine > --- PROPULSION (2) --- (None) > --- UTILITY (5) ------ Small Storage Unit Compact Battery > --- WEAPON (3) ------- Improved EM Shotgun Pulse Rifle > --- INVENTORY (8) ---- Heavy Ion Engine Carbon-fiber Leg Carbon-fiber Leg Compact Matter Pod (150) Improved Terrain Scanner Minigun Minigun Mini Grenade Launcher Peak State ------------ > --- POWER ------------ Heavy Ion Engine > --- PROPULSION ------- Carbon-fiber Leg Armored Wheel > --- UTILITY ---------- Small Storage Unit Compact Battery Light Armor Plating Reflective Plating Shield Generator > --- WEAPON ----------- Improved EM Shotgun Improved EM Shotgun Pulse Rifle > --- INVENTORY -------- Heavy Ion Engine Carbon-fiber Leg Carbon-fiber Leg Compact Matter Pod Improved Terrain Scanner Minigun Minigun Mini Grenade Launcher [Rating: 29] Favorites ----------- Power Light Nuclear Core Engine Light Ion Engine Power Core Light Nuclear Core Propulsion Wheel Treads Light Treads Leg Carbon-fiber Leg Wheel Wheel Hover Unit Hover Unit Flight Unit VTOL Module Utility Small Storage Unit Device Seismic Detector Storage Small Storage Unit Protection Light Armor Plating Weapon Medium Laser Energy Gun Medium Laser Ballistic Gun Minigun Launcher Grenade Launcher Build | -11 -10 -10 -9 -9 -8 ------- Run | Scr Mat Min Mat Min Mat Slots Evolved 4 | . . . 2 . 2 Power . | . . . . . . Propulsion . | . . . . . . Utility 3 | . . . 2 . 1 Weapon 1 | . . . . . 1 Parts Attached 52 | 5 9 10 10 5 13 Power 7 | . 2 1 . 1 3 Engine 4 | . 2 1 . . 1 Core 3 | . . . . 1 2 Reactor . | . . . . . . Propulsion 13 | 2 2 3 4 . 2 Treads 1 | 1 . . . . . Leg 1 | . . . . . 1 Wheel 6 | 1 2 2 1 . . Hover 1 | . . 1 . . . Flight 4 | . . . 3 . 1 Utility 10 | 1 1 1 3 1 3 Device 3 | . . . 2 . 1 Storage 2 | 1 . . . . 1 Processor . | . . . . . . Hackware . | . . . . . . Protection 5 | . 1 1 1 1 1 Artifact . | . . . . . . Weapon 22 | 2 4 5 3 3 5 Energy Gun 9 | 2 2 1 . . 4 Energy Cannon . | . . . . . . Ballistic Gun 6 | . . 2 2 2 . Ballistic Cannon . | . . . . . . Launcher 7 | . 2 2 1 1 1 Special Weapon . | . . . . . . Impact Weapon . | . . . . . . Slashing Weapon . | . . . . . . Piercing Weapon . | . . . . . . Special Melee Weapon . | . . . . . . Unidentified Prototypes 2 | . . . . . 2 Parts Lost 16 | . . 6 3 . 7 Power 1 | . . 1 . . . Propulsion 6 | . . 3 1 . 2 Utility 3 | . . . 1 . 2 Weapon 6 | . . 2 1 . 3 Highest Loss Streak 5 | . . 4 1 . 5 To Critical Strikes . | . . . . . . Average Slot Usage (%) 88 | . 84 90 80 94 91 Engine 2 | . 1 7 . . 3 Core 2 | . . . . 6 4 Treads 2 | . 14 1 . . . Wheel 11 | . 13 12 11 11 8 Hover 3 | . . 11 4 . . Flight 4 | . . . 6 11 2 Device 11 | . . . 15 22 20 Storage 12 | . 14 14 11 11 10 Protection 11 | . 12 14 10 11 10 Energy Gun 10 | . 27 15 . . 10 Ballistic Gun 11 | . . 11 13 20 10 Launcher 2 | . . . 7 1 3 Naked Turns . | . . . . . . Heaviest Build 32 | 9 11 14 16 22 32 Greatest Support 20 | 10 20 20 12 12 15 Greatest Overweight (x) 9 | . . 4 1 1 9 Average Overweight (x) . | . . . 1 1 1 Largest Inventory Capacity 8 | 8 8 8 8 8 8 Average Capacity 7 | 7 8 8 8 8 8 Most Carried 8 | 7 8 8 8 8 8 Average Carried 7 | 3 7 7 7 7 7 Final Capacity 8 | 8 8 8 8 8 8 Final Carried 8 | 7 8 8 8 8 8 Class Distribution -------------------- 98% | Mutant Dominant Class ---------------- Mutant | -10/Materials Mutant | -10/Mines Mutant | -9/Materials Mutant | -9/Mines Mutant | -8/Materials Resources | -11 -10 -10 -9 -9 -8 ----------- Run | Scr Mat Min Mat Min Mat Matter Collected 1533 | 226 344 173 198 255 337 Remotely . | . . . . . . Salvage Created 1540 | . 238 235 276 333 458 Parts 121 | . 26 19 28 22 26 Haulers Intercepted 2 | . . . 1 . 1 Recyclers Shooed 1 | . . 1 . . . Parts Field Recycled . | . . . . . . Retrieved Matter . | . . . . . . Parts Self-Destructed . | . . . . . . Prevented . | . . . . . . Kills | -11 -10 -10 -9 -9 -8 ------- Run | Scr Mat Min Mat Min Mat Combat Hostiles Destroyed 41 | . 10 6 10 7 8 Guns 27 | . 4 4 4 7 8 AOE 14 | . 6 2 6 . . Classes Destroyed 10 | . 4 3 2 . 1 Worker 3 | . . 1 . 1 1 Builder 2 | . . . 2 . . Tunneler 1 | . . 1 . . . Hauler 2 | . . . 1 . 1 Operator 2 | . 2 . . . . Watcher 1 | . 1 . . . . Swarmer 12 | . 6 . 6 . . Grunt 22 | . 4 4 1 7 6 Sentry 6 | . . 2 3 . 1 Hunter 1 | . . . . . 1 Best Kill Streak 5 | . 4 4 5 4 3 Combat Bots Only 3 | . 3 2 3 3 3 Max Kills in Single Turn 3 | . 3 2 2 2 2 Gunslinging . | . . . . . . Exploded 3 | . 3 1 2 . . Melee . | . . . . . . Uniques/NPCs Destroyed . | . . . . . . Combat | -11 -10 -10 -9 -9 -8 -------- Run | Scr Mat Min Mat Min Mat Damage Taken 2282 | . 302 517 310 306 847 Core 441 | . 88 152 30 27 144 Absorbed by Shields 152 | . . . . . 152 Redirected to Shielding 23 | . 8 15 . . . Core Remaining (%) 63 | 100 . 4 . 85 . Volleys Fired 145 | . 24 26 25 36 34 Largest 3 | . 2 2 2 2 3 Hottest 153 | . 100 100 53 50 153 Shots Fired 231 | . 45 39 27 48 72 Gun 214 | . 42 31 21 48 72 Cannon . | . . . . . . Launcher 17 | . 3 8 6 . . Special . | . . . . . . Kinetic 135 | . . 6 21 48 60 Thermal 75 | . 42 25 . . 8 Explosive 17 | . 3 8 6 . . Electromagnetic 4 | . . . . . 4 Robot Hit Streak 12 | . 7 10 12 6 10 Robot Miss Streak 5 | . 2 2 3 3 5 Penetration Max . | . . . . . . Secondary Targets . | . . . . . . Shots Hit Robots 150 | . 26 29 18 32 45 Core Hits 89 | . 21 18 17 12 21 Critical Kills . | . . . . . . Critical Parts Destroyed 1 | . . . . . 1 Critical Strikes 7 | . 3 2 . . 2 Burn 6 | . 3 2 . . 1 Destroy 1 | . . . . . 1 Melee Attacks . | . . . . . . Impact . | . . . . . . Slashing . | . . . . . . Piercing . | . . . . . . Sneak Attacks . | . . . . . . Combat Hostiles . | . . . . . . Follow-up Attacks . | . . . . . . Damage Inflicted 3245 | . 576 550 837 576 706 Guns 2106 | . 313 289 224 574 706 Cannons . | . . . . . . Explosions 1137 | . 263 261 613 . . Melee . | . . . . . . Ramming 2 | . . . . 2 . Kinetic 1407 | . . 76 224 574 533 Thermal 642 | . 313 213 . . 116 Explosive 1137 | . 263 261 613 . . Electromagnetic 57 | . . . . . 57 Impact . | . . . . . . Slashing . | . . . . . . Piercing . | . . . . . . Highest Corruption 2 | . 2 2 . 2 . Average Corruption 2 | . 2 2 . 2 . Corruption Purged . | . . . . . . Corruption Blocked . | . . . . . . Effects 15 | . . 9 . 6 . Message Errors 1 | . . . . 1 . Matter Fused 3 | . . 1 . 2 . Heat Flow Errors 3 | . . 3 . . . Energy Discharges 3 | . . 1 . 2 . Data Loss (minor) 3 | . . 3 . . . Data Loss (major) 1 | . . 1 . . . Misfires 1 | . . . . 1 . Overload Shots . | . . . . . . Overflow Damage 115 | . . . 115 . . Projectiles . | . . . . . . Explosions 115 | . . . 115 . . Melee . | . . . . . . Knockbacks . | . . . . . . Impact . | . . . . . . Kinetic . | . . . . . . Secondary . | . . . . . . Self-Inflicted Damage 161 | . 49 39 72 1 . Shots 5 | . 2 1 2 . . Rammed 1 | . . . . 1 . Targets Rammed 1 | . . . . 1 . Kicked . | . . . . . . Crushed . | . . . . . . Highest Temperature 392 | . 339 392 1 18 180 Average Temperature 87 | . 114 135 1 9 37 Received Heat Transfer 663 | . 135 180 57 186 105 Effects 4 | . 3 1 . . . Shutdowns 1 | . . 1 . . . Energy Bleed 1 | . 1 . . . . Interference 2 | . 2 . . . . Siege Activations . | . . . . . . Robots Corrupted . | . . . . . . Combat Hostiles . | . . . . . . Parts Fried . | . . . . . . Impact Corruptions . | . . . . . . Robots Melted . | . . . . . . Combat Hostiles . | . . . . . . Parts Melted 2 | . 1 . . . 1 Heat Transferred 2257 | . 1147 777 . . 333 Parts Sabotaged . | . . . . . . Parts Stolen . | . . . . . . Parts Stripped . | . . . . . . Power Chain Reactions . | . . . . . . Missiles Intercepted . | . . . . . . Alert | -11 -10 -10 -9 -9 -8 ------- Run | Scr Mat Min Mat Min Mat Peak Influence 575 | . 259 247 575 379 272 Initial 189 | . . 100 22 189 69 Average 178 | . 102 109 301 241 156 Maximum Alert Level 2 | . 1 1 2 1 1 Low Security (%) 67 | 100 76 87 35 53 77 Level 1 26 | . 23 12 26 46 22 Level 2 6 | . . . 38 . . Level 3 . | . . . . . . Level 4 . | . . . . . . Level 5 . | . . . . . . High Security . | . . . . . . Max Security . | . . . . . . Squads Dispatched 10 | . 3 . 1 . 6 Investigation 1 | . . . . . 1 Extermination . | . . . . . . Reinforcement 6 | . 3 . 1 . 2 Assault . | . . . . . . Garrison 3 | . . . . . 3 Intercept . | . . . . . . Searches Triggered . | . . . . . . Construction Impeded . | . . . . . . Haulers Reinforced . | . . . . . . Active Scanning Responses . | . . . . . . Cargo Convoy Interrupts . | . . . . . . Stealth | -11 -10 -10 -9 -9 -8 --------- Run | Scr Mat Min Mat Min Mat Distress Signals 2 | . . . 2 . . Communications Jammed . | . . . . . . Distress Signals . | . . . . . . Times Spotted 70 | . 16 17 16 7 14 Peak Tracking Total 9 | . 5 9 4 3 4 Tactical Retreats 2 | . . 2 . . . Traps | -11 -10 -10 -9 -9 -8 ------- Run | Scr Mat Min Mat Min Mat Traps Triggered 2 | . 1 . 1 . . Indirectly . | . . . . . . Trap Hack Attempts . | . . . . . . Triggered . | . . . . . . Disarmed . | . . . . . . Reprogrammed . | . . . . . . Reused . | . . . . . . Traps Extracted . | . . . . . . Installed . | . . . . . . Triggered . | . . . . . . Machines | -11 -10 -10 -9 -9 -8 ---------- Run | Scr Mat Min Mat Min Mat Machines Disabled 5 | . . . 4 1 . Max in Single Turn 2 | . . . 2 1 . Machines Sabotaged . | . . . . . . Garrisons Compromised . | . . . . . . Overloaded Fab Kills . | . . . . . . Hacking | -11 -10 -10 -9 -9 -8 --------- Run | Scr Mat Min Mat Min Mat Machines Accessed 10 | . 5 . 3 . 2 Terminals 10 | . 5 . 3 . 2 Fabricators . | . . . . . . Repair Stations . | . . . . . . Recycling Units . | . . . . . . Scanalyzers . | . . . . . . Garrison Access . | . . . . . . Total Hacks 33 | . 15 . 12 . 6 Successful 15 | . 10 . 3 . 2 Failed 18 | . 5 . 9 . 4 Catastrophic 1 | . . . . . 1 Database Lockouts . | . . . . . . Manual 17 | . 10 . 6 . 1 Terminals 33 | . 15 . 12 . 6 Fabricators . | . . . . . . Repair Stations . | . . . . . . Recycling Units . | . . . . . . Scanalyzers . | . . . . . . Garrison Access . | . . . . . . Terminal Hacks 9 | . 6 . 1 . 2 Record 1 | . . . 1 . . Part Schematic 2 | . 2 . . . . Branch Access Points 1 | . . . . . 1 Emergency Access Points 1 | . 1 . . . . Terminal Index 1 | . 1 . . . . Hauler Manifests 2 | . 1 . . . 1 Registered Components 1 | . 1 . . . . Fabricator Hacks . | . . . . . . Repair Station Hacks . | . . . . . . Recycling Unit Hacks . | . . . . . . Scanalyzer . | . . . . . . Garrison Access Hacks . | . . . . . . Unauthorized Hacks 6 | . 4 . 2 . . Terminals 6 | . 4 . 2 . . Botnet 6 | . 4 . 2 . . Fabricators . | . . . . . . Repair Stations . | . . . . . . Recycling Units . | . . . . . . Scanalyzers . | . . . . . . Garrison Access . | . . . . . . Data Cores Recovered . | . . . . . . Used . | . . . . . . Hacking Detections 9 | . 5 . 2 . 2 Full Trace Events 1 | . . . . . 1 Feedback Events . | . . . . . . Feedback Blocked . | . . . . . . Robot Schematics Acquired . | . . . . . . Robots Built . | . . . . . . Authchips . | . . . . . . Time . | . . . . . . Total Robot Build Rating . | . . . . . . Part Schematics Acquired 2 | . 2 . . . . Parts Built . | . . . . . . Authchips . | . . . . . . Time . | . . . . . . Total Part Build Rating . | . . . . . . Parts Repaired . | . . . . . . Time . | . . . . . . Parts Recycled . | . . . . . . Recycled Matter . | . . . . . . Retrieved Matter . | . . . . . . Retrieved Components . | . . . . . . Parts Scanalyzed . | . . . . . . Part Schematics Acquired . | . . . . . . Parts Damaged . | . . . . . . Bothacking | -11 -10 -10 -9 -9 -8 ------------ Run | Scr Mat Min Mat Min Mat Used RIF Installer . | . . . . . . Robots Hacked . | . . . . . . Non-combat . | . . . . . . Combat . | . . . . . . Robot Hacks Applied . | . . . . . . Relay Couplers Released . | . . . . . . Fabnet Peak Effective % . | . . . . . . Robots Rewired . | . . . . . . Allies Hacked . | . . . . . . Hacks Repelled . | . . . . . . Allies | -11 -10 -10 -9 -9 -8 -------- Run | Scr Mat Min Mat Min Mat Total Allies 5 | . . 5 . . . Largest Group 3 | . . 3 3 . . Highest-Rated Group 41 | . . 41 40 . . Highest-Rated Ally 31 | . . 31 16 . . Total Orders . | . . . . . . Ally Attacks 24 | . . 3 21 . . Total Damage 289 | . . 40 249 . . Kills 6 | . . 1 5 . . Allies Corrupted . | . . . . . . Allies Melted . | . . . . . . Intel | -11 -10 -10 -9 -9 -8 ------- Run | Scr Mat Min Mat Min Mat Robot Analysis Total . | . . . . . . Derelict Logs Recovered 6 | . . 3 . 3 . Drone Launches . | . . . . . . Drone Recoveries . | . . . . . . Exploration | -11 -10 -10 -9 -9 -8 ------------- Run | Scr Mat Min Mat Min Mat Turns Passed 3194 | 52 583 775 562 744 478 Spaces Moved 2487 | 53 540 632 474 573 215 Core 33 | 15 . 9 . . 9 Treads 4 | . 2 2 . . . Legs 51 | . . . . . 51 Wheels 2389 | 38 538 611 474 573 155 Hover 10 | . . 10 . . . Flight . | . . . . . . Fastest Speed 50 | 50 80 80 95 105 105 Average Speed 99 | 71 80 96 100 105 146 Slowest Speed 500 | 80 160 250 105 105 500 Overloaded Moves . | . . . . . . Propulsion Burnouts . | . . . . . . Robots Hopped . | . . . . . . Cave-ins Triggered . | . . . . . . Exploration Rate (%) 57 | 4 78 93 48 97 27 Regions Visited 5 Branch Regions 2 Pre-discovered Areas 2 | . . 1 . 1 . Known Exits Taken 1 | . . . 1 . . Unknown Exits Taken 4 | 1 1 1 . 1 . Scrap Searched 2 | . . 1 . 1 . Spaces Dug . | . . . . . . Terrain Destroyed 129 | . 27 27 75 . . Melee . | . . . . . . Projectile . | . . . . . . AOE 129 | . 27 27 75 . . Terrain Rammed . | . . . . . . Walls Destroyed . | . . . . . . Machines Disabled . | . . . . . . Actions | -11 -10 -10 -9 -9 -8 --------- Run | Scr Mat Min Mat Min Mat Total 3001 | 64 648 755 533 677 324 Wait 237 | . 51 82 11 57 36 Move 2482 | 52 539 631 473 572 215 Hop . | . . . . . . Pick Up 40 | 7 11 3 6 2 11 Fast Attach 26 | 5 2 4 7 3 5 Attach 16 | . 3 4 2 1 6 Detach 7 | . 3 2 . . 2 Swap 10 | . 4 2 1 1 2 Drop 37 | . 11 1 8 4 13 Fire 145 | . 24 26 25 36 34 Melee . | . . . . . . Ram 1 | . . . . 1 . Kick . | . . . . . . Crush . | . . . . . . Escape Stasis . | . . . . . . Rewire . | . . . . . . Trap . | . . . . . . Miscellaneous . | . . . . . . Route ------- -11/Scrapyard -10/Materials (discovered 4 exits: *Mat x3 / [*Min]) -10/Mines -9/Materials (discovered 4 exits: *Mat x2 / *Min x2) -9/Mines (discovered 2 exits: *Mat x2) -8/Materials (discovered 2 exits: [*Fac] / Sto) History --------- Turn | Location | Event 31 | -11/Scrapyard | Discovered new exit (range 16) 53 | -11/Scrapyard | Entered Materials 246 | -10/Materials | Discovered new exit (range 16) 303 | -10/Materials | Build established: Mutant 344 | -10/Materials | Discovered new exit (range 5) 496 | -10/Materials | Discovered new exit (range 6) 580 | -10/Materials | Discovered new exit (range 16) 636 | -10/Materials | Entered Mines 737 | -10/Mines | Discovered new exit (range 9) 775 | -10/Mines | Assembled infested the area 782 | -10/Mines | Core integrity fell below 50% 847 | -10/Mines | Learned Materials emergency access door positions 922 | -10/Mines | Learned location of Mines (-9) 940 | -10/Mines | Core integrity fell below 20% 1126 | -10/Mines | Lost 4 parts (1p1n2w) 1197 | -10/Mines | Assisted by bots powering up and referring to "LRC-V3" 1411 | -10/Mines | Entered Materials 1411 | -9/Materials | Accompanied by 3 allies 1411 | -9/Materials | Evolved 2 slots: Utility x2 1412 | -9/Materials | Identified exit to Mines 1505 | -9/Materials | Discovered new exit (range 10) 1676 | -9/Materials | Discovered new exit (range 10) 1973 | -9/Materials | Entered Mines 1991 | -9/Mines | Received a Rocket Launcher from a helpful Derelict 2364 | -9/Mines | Learned Materials garrison access intel 2368 | -9/Mines | Learned Materials stockpile data 2559 | -9/Mines | Discovered new exit (range 6) 2627 | -9/Mines | Discovered new exit (range 8) 2717 | -9/Mines | Entered Materials 2717 | -8/Materials | Evolved 2 slots: Utility x1, Weapon x1 2719 | -8/Materials | Loaded intel: 1 garrison access location 2874 | -8/Materials | Garrison activated, responded to threat 2922 | -8/Materials | Identified exit to Storage 3141 | -8/Materials | Discovered new exit (range 8) 3195 | -8/Materials | Self-destructed Last Messages --------------- 03157_ Knocked back. 03160_ Acquired 5 matter. 03161_ Knocked back. 03162_ Acquired 4 matter. 03164_ Reflective Plating destroyed. 03164_ Lgt. Armor Plating blasted off. 03164_ Knocked back. 03166_ Penetrated by Slug. 03166_ Carbon-fiber Leg destroyed. 03166_ Knocked back. 03167_ Acquired 3 matter. 03167_ Acquired 4 matter. 03168_ Penetrated by Slug. 03168_ Knocked back. 03171_ Acquired 5 matter. 03178_ U-05 Engineer builds a Wall. 03179_ Acquired 5 matter. 03182_ U-05 Engineer builds a Wall. 03190_ Imp. EM Shotgun destroyed. 03193_ Slug penetrates Wall. Map ----- +----------------------------------------------------+ | | | | | | | | | | | | | | | | | | | | | ?????????????????????????????????????????????????? | | ?????????????????????????????????????????????????? | | ?????????????????????????????????????????????????? | | ?????????????????????????????????????????????????? | | ???????###???????????????????????????????????????? | | ??????? ????????????????????????????????????????? | | ??####? ????????????????????????????????????????? | | ??# ? ????????????????????????????????????????? | | ??# < ? ????????????????????????????????????????? | | ??# ? ?????????????????????????????????????????? | | ??+ ? ????????????????????]????????????????????? | | ??# # ?????????????????????????????????????????? | | ??# " ?????????????????????????????????????????? | | ?## "#?????????????????????????????????????????? | | ## ] ######################## ???????? | | x ! @ % ???????? | | T "####################??????????????? | | H #??????????????????????????????????? | | ## #??????????????????????????????????? | | ?### ###########????????????????????????? | | ???# # #????????????????????????? | | ???# #! #?????? ???????????????? | | ???# [#=*""" #???? = ?????????????? | | ?? + """ =%/ """"" #???? ????????????? | | ? # """ =!#=""""" ??????? ????????????? | | # """ *%#=""""" ?????? ??????*?????? | | ?# # """ ??????? ???????????? | | ?# # ??????? ]] ???????????? | | #??# = ############## ] ???????????? | | ???# * ???????????? | | ???# ??????????????? | | ???# ]]! = #?????????????????? | | ???# ]! ! #????????????????????? | | ???# ]! #????????????????????? | | ???# """"" """"" #??""? ??????????????? | | ???# """"" """"" #?""" ???????????????? | | ?? """"" """"" # """ ???????????????? | | ? ???? + ??????????????????? | | ??????? #????????????????????? | | ?####+############ #????????????????????? | +----------------------------------------------------+ Best States ------------- Heat Dissipation 31 Energy Generation 14 Energy Capacity 480 Matter Stores 300 Matter Capacity 300 Sight Range 16 Terrain Scan Range 14 Terrain Scan Density 10 Armor Coverage 300 Resistance: TH 10 Utility Shielding 33 Evasion (%) 50 Recoil Reduction 1 Item Schematics ----------------- Sml. Storage Unit | -10/Materials | Hacked Med. Storage Unit | -10/Materials | Hacked Robot Schematics ------------------ None Fabricated ------------ Nothing Alien Tech Used ----------------- None Achievements -------------- None Challenges ------------ None Game ------ Seed AdvancedTeslaJammer Manual? 0 Play Time 00:39:25 Cumulative 108.9 hours Start 2022.10.07 @ 22:40:04 End 2022.10.11 @ 19:04:09 Sessions 3 Manual Loads 0 Difficulty Rogue Special Mode None Game No. 118 Rogue 115 Adventurer 0 Explorer 3 Win Type - Total 3 Types 3/0/0/0/0/0/0/0/0 Lore% 52 Gallery% 55 Achievement% 56 Wizard Run 0 Options --------- ASCII 0 Keyboard 1 Movement Numpad Keybinds 0 Fullscreen 2 Font 18/SmallcapsGlow Map View 76x50 Tactical HUD 1 Map Filters NONE Filters NONE Steam 1 RUN: 8ccf3e7d-0005-4c85-a75b-ad0c813c6cb9